fUSD/lending_fUSD_20240423
["ID","MTS","AMOUNT","RATE_DAILY","PERIOD"]
[323319395,1713889836788,-427.37,0.00011558,2]
[323319396,1713889836798,-500.0,0.00011558,2]
[323319397,1713889836807,-500.0,0.00011558,2]
[323319398,1713889836818,-500.0,0.00011558,2]
[323319399,1713889836828,-500.0,0.00011558,2]
[323319400,1713889836837,-500.0,0.00011558,2]
[323319401,1713889836847,-486.05,0.00011558,2]
[323319402,1713889836856,-500.0,0.00011558,2]
[323319403,1713889836865,-500.0,0.00011558,2]
[323319404,1713889836875,-668.01,0.00011558,2]
[323319405,1713889836885,-500.0,0.00011558,2]
[323319406,1713889836896,-500.0,0.00011558,2]
[323319407,1713889836906,-1561.87,0.00011558,2]
[323319408,1713889836916,-762.5,0.00011558,2]
[323319409,1713889836925,-500.0,0.00011558,2]
[323319410,1713889836935,-1223.96,0.00011558,2]
[323319411,1713889836945,-558.03,0.00011558,2]
[323319412,1713889836955,-500.0,0.00011558,2]
[323319413,1713889836965,-500.0,0.00011558,2]
[323319414,1713889836974,-3808.76,0.00011558,2]
[323319415,1713889836984,-1013.06,0.00011558,2]
[323319416,1713889836994,-500.0,0.00011558,2]
[323319417,1713889837004,-500.0,0.00011558,2]
[323319418,1713889837013,-1272.68,0.00011558,2]
[323319419,1713889837023,-500.0,0.00011558,2]
[323319420,1713889837036,-1905.57,0.00011558,2]
[323319421,1713889837046,-500.0,0.00011558,2]
[323319422,1713889837055,-3032.18,0.00011558,2]
[323319423,1713889837065,-668.49,0.00011558,2]
[323319424,1713889837075,-533.69,0.00011558,2]
[323319425,1713889837089,-699.44,0.00011558,2]
[323319426,1713889837099,-500.0,0.00011558,2]
[323319427,1713889837109,-500.0,0.00011558,2]
[323319428,1713889837119,-541.04,0.00011558,2]
[323319429,1713889837128,-500.0,0.00011558,2]
[323319430,1713889837138,-500.0,0.00011558,2]
[323319431,1713889837148,-811.3,0.00011558,2]
[323319432,1713889837160,-400.0,0.00011569,2]
[323319433,1713889837171,-792.22191895,0.0001157,7]
[323319434,1713889837181,-526.4,0.00011578,2]
[323319435,1713889837190,-1745.88,0.000116,2]
[323319436,1713889837200,-578.88,0.00011604,2]
[323319437,1713889837210,-315.16,0.00011611,2]
[323319438,1713889837220,-422.76158124,0.00011613,2]
[323319439,1713889837230,-165.44,0.00011713,2]
[323319440,1713889837240,-500.0,0.00011721,2]
[323319441,1713889837251,-500.0,0.00011721,2]
[323319442,1713889837261,-12266.13,0.00011721,2]
[323319443,1713889837271,-958.65,0.00011721,2]
[323319444,1713889837283,-241.42,0.00011721,2]
[323319445,1713889837293,-500.0,0.00011721,2]
[323319446,1713889837303,-685.02,0.00011721,2]
[323319447,1713889837313,-710.55,0.00011721,2]
[323319449,1713889837323,-500.0,0.00011721,2]
[323319451,1713889837333,-534.36,0.00011721,2]
[323319453,1713889837342,-500.0,0.00011721,2]
[323319455,1713889837353,-560.84,0.00011721,2]
[323319456,1713889837363,-2033.9,0.00011721,2]
[323319459,1713889837373,-500.0,0.00011721,2]
[323319462,1713889837383,-560.57641957,0.00011721,2]
[323319465,1713889837393,-587.98,0.00011721,2]
[323319468,1713889837402,-2157.53,0.00011721,2]
[323319470,1713889837412,-500.0,0.00011721,2]
[323319472,1713889837422,-787.94,0.00011721,2]
[323319474,1713889837432,-500.0,0.00011721,2]
[323319475,1713889837441,-500.0,0.00011721,2]
[323319476,1713889837450,-571.85,0.00011721,2]
[323319477,1713889837460,-1085.25,0.00011721,2]
[323319479,1713889837470,-3681.09,0.00011721,2]
[323319480,1713889837481,-500.0,0.00011721,2]
[323319481,1713889837490,-500.0,0.00011721,2]
[323319482,1713889837499,-912.02,0.00011721,2]
[323319483,1713889837510,-783.61,0.00011721,2]
[323319484,1713889837520,-500.0,0.00011721,2]
[323319485,1713889837533,-2742.3,0.00011721,2]
[323319486,1713889837543,-686.94,0.00011721,2]
[323319487,1713889837553,-500.0,0.00011721,2]
[323319488,1713889837564,-500.0,0.00011721,2]
[323319489,1713889837574,-500.0,0.00011721,2]
[323319490,1713889837584,-1205.19,0.00011721,2]
[323319491,1713889837594,-1174.33,0.00011721,2]
[323319492,1713889837605,-3051.35,0.00011721,2]
[323319493,1713889837615,-500.0,0.00011721,2]
[323319494,1713889837625,-500.0,0.00011721,2]
[323319495,1713889837635,-841.12,0.00011721,2]
[323319496,1713889837644,-2272.54,0.00011721,2]
[323319497,1713889837654,-1206.89,0.00011721,2]
[323319498,1713889837664,-1364.21,0.00011721,2]
[323319499,1713889837674,-1243.76,0.00011721,2]
[323319500,1713889837684,-500.0,0.00011721,2]
[323319501,1713889837693,-500.0,0.00011721,2]
[323319502,1713889837703,-178.27646935,0.00011732,2]
[323319503,1713889837713,-540.646685,0.00011732,2]
[323319504,1713889837724,-800.0,0.000118,4]
[323319505,1713889837733,-335.52269983,0.00011819,2]
[323319506,1713889837742,-500.0,0.0001183,2]
[323319507,1713889837751,-743.6,0.0001183,2]
[323319508,1713889837761,-852.89,0.0001183,2]
[323319509,1713889837771,-850.43,0.0001183,2]
[323319510,1713889837782,-500.0,0.0001183,2]
[323319511,1713889837791,-2295.32,0.0001183,2]
[323319512,1713889837801,-500.0,0.0001183,2]
[323319513,1713889837811,-651.69,0.0001183,2]
[323319514,1713889837820,-1744.46,0.0001183,2]
[323319516,1713889837830,-817.08,0.0001183,2]
[323319518,1713889837840,-500.0,0.0001183,2]
[323319520,1713889837850,-500.0,0.00011832,2]
[323319522,1713889837859,-500.0,0.00011832,2]
[323319524,1713889837869,-500.0,0.00011832,2]
[323319526,1713889837879,-500.0,0.00011832,2]
[323319528,1713889837889,-500.0,0.00011832,2]
[323319530,1713889837899,-500.0,0.00011832,2]
[323319532,1713889837908,-500.0,0.00011832,2]
[323319534,1713889837917,-500.0,0.00011832,2]
[323319536,1713889837926,-500.0,0.00011832,2]
[323319538,1713889837936,-500.0,0.00011832,2]
[323319540,1713889837945,-500.0,0.00011832,2]
[323319542,1713889837955,-500.0,0.00011832,2]
[323319544,1713889837965,-500.0,0.00011832,2]
[323319546,1713889837974,-501.84,0.00011832,2]
[323319548,1713889837984,-500.0,0.00011832,2]
[323319550,1713889837993,-500.0,0.00011832,2]
[323319552,1713889838002,-500.0,0.00011832,2]
[323319554,1713889838012,-500.0,0.00011832,2]
[323319556,1713889838021,-833.21,0.00011832,2]
[323319558,1713889838033,-500.0,0.00011832,2]
[323319560,1713889838044,-500.0,0.00011832,2]
[323319563,1713889838054,-510.53,0.00011832,2]
[323319564,1713889838063,-500.0,0.00011832,2]
[323319566,1713889838075,-500.0,0.00011832,2]
[323319568,1713889838085,-631.34,0.00011832,2]
[323319570,1713889838095,-520.68,0.00011832,2]
[323319572,1713889838105,-500.0,0.00011832,2]
[323319575,1713889838115,-509.47,0.00011832,2]
[323319577,1713889838125,-500.0,0.00011832,2]
[323319579,1713889838134,-500.0,0.00011832,2]
[323319581,1713889838144,-500.0,0.00011832,2]
[323319583,1713889838154,-500.0,0.00011832,2]
[323319585,1713889838164,-500.0,0.00011832,2]
[323319587,1713889838174,-500.0,0.00011832,2]
[323319589,1713889838183,-500.0,0.00011832,2]
[323319591,1713889838192,-500.0,0.00011832,2]
[323319593,1713889838201,-500.0,0.00011832,2]
[323319595,1713889838210,-304.22,0.00011832,2]
[323319597,1713889838219,-500.0,0.00011832,2]
[323319599,1713889838228,-500.0,0.00011832,2]
[323319601,1713889838238,-500.0,0.00011832,2]
[323319603,1713889838247,-500.0,0.00011832,2]
[323319605,1713889838256,-500.0,0.00011832,2]
[323319607,1713889838265,-500.0,0.00011832,2]
[323319608,1713889838274,-500.0,0.00011832,2]
[323319611,1713889838289,-500.0,0.00011832,2]
[323319613,1713889838298,-500.0,0.00011832,2]
[323319615,1713889838308,-500.0,0.00011832,2]
[323319617,1713889838317,-219.81,0.00011832,2]
[323319619,1713889838326,-500.0,0.00011832,2]
[323319621,1713889838335,-500.0,0.00011832,2]
[323319623,1713889838345,-503.55,0.00011832,2]
[323319625,1713889838354,-500.0,0.00011832,2]
[323319627,1713889838363,-500.0,0.00011832,2]
[323319629,1713889838372,-500.0,0.00011832,2]
[323319637,1713889838433,-401.34,0.00011832,2]
[323319639,1713889838442,-685.47,0.00011832,2]
[323319641,1713889838451,-185.74563322,0.00011832,2]
[323319643,1713889838460,-552.67,0.00011832,2]
[323319644,1713889838470,-500.0,0.00011832,2]
[323319646,1713889838479,-500.0,0.00011832,2]
[323319649,1713889838488,-514.67,0.00011832,2]
[323319651,1713889838498,-500.0,0.00011832,2]
[323319653,1713889838507,-524.21,0.00011832,2]
[323319654,1713889838517,-500.0,0.00011832,2]
[323319656,1713889838529,-500.0,0.00011832,2]
[323319658,1713889838539,-500.0,0.00011832,2]
[323319661,1713889838548,-1327.1,0.00011832,2]
[323319663,1713889838557,-500.0,0.00011832,2]
[323319665,1713889838567,-511.9,0.00011832,2]
[323319666,1713889838576,-561.35,0.00011832,2]
[323319668,1713889838585,-946.69,0.00011832,2]
[323319671,1713889838595,-4674.28,0.00011832,2]
[323319673,1713889838604,-500.0,0.00011832,2]
[323319675,1713889838613,-877.17,0.00011832,2]
[323319677,1713889838622,-500.0,0.00011832,2]
[323319678,1713889838631,-493.2,0.00011832,2]
[323319681,1713889838641,-500.0,0.00011832,2]
[323319682,1713889838650,-500.0,0.00011832,2]
[323319684,1713889838659,-1123.69,0.00011832,2]
[323319686,1713889838668,-1121.5,0.00011832,2]
[323319688,1713889838678,-784.16,0.00011832,2]
[323319691,1713889838687,-925.38,0.00011832,2]
[323319693,1713889838696,-500.0,0.00011832,2]
[323319695,1713889838705,-824.39,0.00011832,2]
[323319697,1713889838715,-500.0,0.00011832,2]
[323319699,1713889838724,-9493.78526009,0.00011832,2]
[323319730,1713889839011,-389.84087267,0.00011832,2]
[323319732,1713889839022,-1479.4257306,0.00011832,2]
[323319735,1713889839036,-3769.86813664,0.00011832,2]
[323319736,1713889839046,-1734.44,0.00011832,2]
[323319738,1713889839055,-1431.17,0.00011832,2]
[323319740,1713889839064,-500.0,0.00011832,2]
[323319742,1713889839073,-500.0,0.00011832,2]
[323319744,1713889839087,-651.94,0.00011832,2]
[323319746,1713889839095,-653.71,0.00011832,2]
[323319748,1713889839104,-500.0,0.00011832,2]
[323319750,1713889839113,-701.17,0.00011832,2]
[323319752,1713889839123,-500.0,0.00011832,2]
[323319754,1713889839133,-500.0,0.00011832,2]
[323319756,1713889839142,-1536.15,0.00011832,2]
[323319758,1713889839153,-597.14,0.00011832,2]
[323319760,1713889839162,-500.0,0.00011832,2]
[323319763,1713889839172,-304.41402507,0.00011832,2]
[323319765,1713889839184,-195.58597493,0.00011832,2]
[323319767,1713889839193,-500.0,0.00011832,2]
[323319769,1713889839202,-500.0,0.00011832,2]
[323319771,1713889839211,-500.0,0.00011832,2]
[323319773,1713889839220,-500.0,0.00011832,2]
[323319775,1713889839229,-500.0,0.00011832,2]
[323319777,1713889839239,-483.03521652,0.00011832,2]
[323319778,1713889839251,-16.96478348,0.00011832,2]
[323319779,1713889839260,-500.0,0.00011832,2]
[323319780,1713889839296,-668.01,0.00011832,2]
[323319781,1713889839305,-500.0,0.00011832,2]
[323319782,1713889839314,-500.0,0.00011832,2]
[323319783,1713889839323,-1206.08246992,0.00011832,2]
[323319785,1713889839356,-355.78753008,0.00011832,2]
[323319787,1713889839366,-762.5,0.00011832,2]
[323319789,1713889839375,-500.0,0.00011832,2]
[323319791,1713889839384,-1223.96,0.00011832,2]
[323319793,1713889839393,-558.03,0.00011832,2]
[323319795,1713889839402,-500.0,0.00011832,2]
[323319798,1713889839411,-500.0,0.00011832,2]
[323319800,1713889839420,-2428.62276992,0.00011832,2]
[323319802,1713889839432,-1380.13723008,0.00011832,2]
[323319804,1713889839440,-1013.06,0.00011832,2]
[323319806,1713889839449,-500.0,0.00011832,2]
[323319808,1713889839458,-500.0,0.00011832,2]
[323319810,1713889839468,-1272.68,0.00011832,2]
[323319812,1713889839477,-500.0,0.00011832,2]
[323319814,1713889839486,-890.02529712,0.00011832,2]
[323319817,1713889839498,-1015.54470288,0.00011832,2]
[323319819,1713889839507,-500.0,0.00011832,2]
[323319821,1713889839517,-3032.18,0.00011832,2]
[323319823,1713889839526,-668.49,0.00011832,2]
[323319825,1713889839536,-533.69,0.00011832,2]
[323319827,1713889839545,-699.44,0.00011832,2]
[323319829,1713889839555,-500.0,0.00011832,2]
[323319831,1713889839564,-504.54,0.00011832,2]
[323319833,1713889839573,-500.0,0.00011832,2]
[323319835,1713889839582,-500.0,0.00011832,2]
[323319837,1713889839591,-811.3,0.00011832,2]
[323319839,1713889839601,-1124.88649019,0.00011839,2]
[323319841,1713889839610,-1200.0,0.000119,4]
[323319843,1713889839619,-167.05753178,0.00011979,2]
[323319845,1713889839629,-500.0,0.00011995,2]
[323319847,1713889839639,-500.0,0.00011995,2]
[323319849,1713889839648,-12266.13,0.00011995,2]
[323319851,1713889839657,-958.65,0.00011995,2]
[323319853,1713889839667,-500.0,0.00011995,2]
[323319855,1713889839676,-685.02,0.00011995,2]
[323319857,1713889839685,-710.55,0.00011995,2]
[323319859,1713889839695,-500.0,0.00011995,2]
[323319861,1713889839704,-534.36,0.00011995,2]
[323319863,1713889839715,-58.16127715,0.00011995,2]
[323319865,1713889839726,-441.83872285,0.00011995,2]
[323319867,1713889839736,-64.01627215,0.00011995,2]
[323319945,1713889840820,-496.82372785,0.00011995,2]
[323319946,1713889840830,-2033.9,0.00011995,2]
[323319947,1713889840840,-500.0,0.00011995,2]
[323319948,1713889840850,-587.98,0.00011995,2]
[323319949,1713889840860,-2157.53,0.00011995,2]
[323319950,1713889840869,-500.0,0.00011995,2]
[323319951,1713889840879,-787.94,0.00011995,2]
[323319952,1713889840889,-500.0,0.00011995,2]
[323319954,1713889840899,-500.0,0.00011995,2]
[323319955,1713889840908,-571.85,0.00011995,2]
[323319956,1713889840918,-1085.25,0.00011995,2]
[323319957,1713889840927,-3681.09,0.00011995,2]
[323319958,1713889840937,-500.0,0.00011995,2]
[323319959,1713889840947,-500.0,0.00011995,2]
[323319960,1713889840957,-912.02,0.00011995,2]
[323319961,1713889840967,-783.61,0.00011995,2]
[323319962,1713889840976,-500.0,0.00011995,2]
[323319963,1713889840986,-2742.3,0.00011995,2]
[323319964,1713889840996,-686.94,0.00011995,2]
[323319965,1713889841006,-500.0,0.00011995,2]
[323319966,1713889841015,-500.0,0.00011995,2]
[323319967,1713889841025,-500.0,0.00011995,2]
[323319968,1713889841036,-1205.19,0.00011995,2]
[323319969,1713889841046,-1174.33,0.00011995,2]
[323319970,1713889841055,-3051.35,0.00011995,2]
[323319971,1713889841064,-500.0,0.00011995,2]
[323319972,1713889841075,-500.0,0.00011995,2]
[323319973,1713889841088,-841.12,0.00011995,2]
[323319974,1713889841100,-2272.54,0.00011995,2]
[323319975,1713889841111,-1206.89,0.00011995,2]
[323319976,1713889841124,-1364.21,0.00011995,2]
[323319977,1713889841136,-1243.76,0.00011995,2]
[323319978,1713889841147,-500.0,0.00011995,2]
[323319979,1713889841161,-500.0,0.00011995,2]
[323319980,1713889841172,-3069.43072971,0.00012,2]
[323319981,1713889841182,-2750.0,0.00012,2]
[323319982,1713889841192,-168.83,0.00012033,2]
[323319983,1713889841202,-12081.01,0.00012055,2]
[323319984,1713889841214,-426.53687456,0.00012072,2]
[323319985,1713889841228,-500.0,0.00012077,2]
[323319986,1713889841240,-155.0,0.00012078,2]
[323319987,1713889841250,-2353.62009514,0.00012078,2]
[323319988,1713889841262,-287.6377139,0.00012078,2]
[323319989,1713889841273,-4406.01803981,0.00012078,2]
[323319990,1713889841284,-407.56490296,0.00012078,2]
[323319991,1713889841295,-304.99787147,0.00012078,2]
[323319992,1713889841306,-249.73515181,0.00012078,2]
[323319993,1713889841318,-603.43511994,0.00012078,2]
[323319994,1713889841328,-966.55573744,0.00012078,2]
[323319995,1713889841339,-242.63061963,0.00012078,2]
[323319996,1713889841349,-155.0,0.00012078,2]
[323319997,1713889841359,-155.13606582,0.00012078,2]
[323319998,1713889841369,-206.18426768,0.00012078,2]
[323319999,1713889841378,-3901.00734029,0.00012078,2]
[323320000,1713889841386,-155.38655138,0.00012078,2]
[323320001,1713889841395,-155.0,0.00012078,2]
[323320002,1713889841405,-2884.33570143,0.00012078,2]
[323320003,1713889841414,-167.44367917,0.00012078,2]
[323320004,1713889841422,-155.0,0.00012078,2]
[323320005,1713889841432,-155.0,0.00012078,2]
[323320006,1713889841441,-949.71409335,0.00012078,2]
[323320007,1713889841450,-155.0,0.00012078,2]
[323320008,1713889841459,-3926.62250912,0.00012078,2]
[323320009,1713889841471,-155.09732717,0.00012078,2]
[323320010,1713889841481,-1302.01131147,0.00012078,2]
[323320011,1713889841493,-247.50710035,0.00012078,2]
[323320012,1713889841503,-267.10232057,0.00012078,2]
[323320013,1713889841513,-683.85801467,0.00012078,2]
[323320014,1713889841524,-174.44705106,0.00012078,2]
[323320015,1713889841536,-192.75371365,0.00012078,2]
[323320016,1713889841546,-155.0,0.00012078,2]
[323320017,1713889841556,-363.24868321,0.00012078,2]
[323320018,1713889841567,-155.3011019,0.00012079,2]
[323320019,1713889841577,-756.25591946,0.00012079,2]
[323320020,1713889841587,-14620.60532292,0.00012079,2]
[323320021,1713889841597,-173.32986147,0.00012079,2]
[323320022,1713889841606,-408.74302625,0.00012081,2]
[323320023,1713889841615,-289.11274756,0.00012081,2]
[323320024,1713889841627,-80531.21664912,0.00012081,2]
[323320025,1713889841638,-500.0,0.00012081,2]
[323320026,1713889841650,-1000.0,0.00012081,2]
[323320027,1713889841660,-500.0,0.00012104,2]
[323320028,1713889841671,-743.6,0.00012104,2]
[323320029,1713889841682,-852.89,0.00012104,2]
[323320030,1713889841693,-850.43,0.00012104,2]
[323320031,1713889841702,-500.0,0.00012104,2]
[323320032,1713889841713,-2295.32,0.00012104,2]
[323320033,1713889841723,-500.0,0.00012104,2]
[323320034,1713889841734,-651.69,0.00012104,2]
[323320035,1713889841744,-1744.46,0.00012104,2]
[323320036,1713889841756,-817.08,0.00012104,2]
[323320037,1713889841766,-500.0,0.00012104,2]
[323320038,1713889841776,-500.0,0.00012106,2]
[323320039,1713889841787,-500.0,0.00012106,2]
[323320040,1713889841798,-500.0,0.00012106,2]
[323320041,1713889841809,-500.0,0.00012106,2]
[323320042,1713889841820,-500.0,0.00012106,2]
[323320043,1713889841829,-500.0,0.00012106,2]
[323320044,1713889841839,-500.0,0.00012106,2]
[323320045,1713889841850,-500.0,0.00012106,2]
[323320046,1713889841862,-500.0,0.00012106,2]
[323320047,1713889841873,-500.0,0.00012106,2]
[323320048,1713889841883,-500.0,0.00012106,2]
[323320049,1713889841893,-500.0,0.00012106,2]
[323320050,1713889841904,-501.84,0.00012106,2]
[323320051,1713889841914,-500.0,0.00012106,2]
[323320052,1713889841924,-500.0,0.00012106,2]
[323320053,1713889841934,-500.0,0.00012106,2]
[323320054,1713889841945,-833.21,0.00012106,2]
[323320055,1713889841956,-500.0,0.00012106,2]
[323320056,1713889841967,-500.0,0.00012106,2]
[323320057,1713889841977,-510.53,0.00012106,2]
[323320058,1713889841987,-500.0,0.00012106,2]
[323320059,1713889841998,-500.0,0.00012106,2]
[323320060,1713889842009,-631.34,0.00012106,2]
[323320061,1713889842020,-520.68,0.00012106,2]
[323320062,1713889842032,-500.0,0.00012106,2]
[323320063,1713889842041,-509.47,0.00012106,2]
[323320064,1713889842053,-500.0,0.00012106,2]
[323320065,1713889842062,-500.0,0.00012106,2]
[323320066,1713889842073,-500.0,0.00012106,2]
[323320067,1713889842085,-500.0,0.00012106,2]
[323320068,1713889842095,-500.0,0.00012106,2]
[323320069,1713889842104,-500.0,0.00012106,2]
[323320070,1713889842115,-500.0,0.00012106,2]
[323320071,1713889842124,-500.0,0.00012106,2]
[323320072,1713889842134,-410.17999998,0.00012106,2]
[323320073,1713889842143,-500.0,0.00012106,2]
[323320074,1713889842152,-500.0,0.00012106,2]
[323320075,1713889842163,-500.0,0.00012106,2]
[323320076,1713889842173,-500.0,0.00012106,2]
[323320077,1713889842183,-500.0,0.00012106,2]
[323320078,1713889842192,-500.0,0.00012106,2]
[323320079,1713889842203,-449.97373931,0.00012106,2]
[323320080,1713889842213,-500.0,0.00012106,2]
[323320081,1713889842222,-500.0,0.00012106,2]
[323320082,1713889842231,-500.0,0.00012106,2]
[323320084,1713889842241,-500.0,0.00012106,2]
[323320086,1713889842250,-500.0,0.00012106,2]
[323320087,1713889842260,-503.55,0.00012106,2]
[323320088,1713889842270,-500.0,0.00012106,2]
[323320089,1713889842280,-500.0,0.00012106,2]
[323320090,1713889842289,-500.0,0.00012106,2]
[323320091,1713889842299,-685.47,0.00012106,2]
[323320092,1713889842309,-552.67,0.00012106,2]
[323320093,1713889842319,-500.0,0.00012106,2]
[323320094,1713889842329,-500.0,0.00012106,2]
[323320096,1713889842339,-500.0,0.00012106,2]
[323320098,1713889842349,-500.0,0.00012106,2]
[323320100,1713889842358,-500.0,0.00012106,2]
[323320102,1713889842367,-500.0,0.00012106,2]
[323320104,1713889842377,-500.0,0.00012106,2]
[323320106,1713889842387,-511.9,0.00012106,2]
[323320108,1713889842396,-561.35,0.00012106,2]
[323320110,1713889842406,-946.69,0.00012106,2]
[323320113,1713889842416,-4674.28,0.00012106,2]
[323320116,1713889842425,-500.0,0.00012106,2]
[323320120,1713889842435,-877.17,0.00012106,2]
[323320123,1713889842445,-500.0,0.00012106,2]
[323320125,1713889842454,-500.0,0.00012106,2]
[323320127,1713889842464,-500.0,0.00012106,2]
[323320129,1713889842473,-1123.69,0.00012106,2]
[323320130,1713889842484,-1121.5,0.00012106,2]
[323320132,1713889842494,-784.16,0.00012106,2]
[323320134,1713889842503,-925.38,0.00012106,2]
[323320136,1713889842513,-500.0,0.00012106,2]
[323320137,1713889842522,-824.39,0.00012106,2]
[323320139,1713889842533,-461.13,0.00012106,2]
[323320140,1713889842542,-15132.92,0.00012106,2]
[323320142,1713889842551,-1734.44,0.00012106,2]
[323320144,1713889842560,-1431.17,0.00012106,2]
[323320146,1713889842570,-500.0,0.00012106,2]
[323320148,1713889842580,-500.0,0.00012106,2]
[323320149,1713889842589,-651.94,0.00012106,2]
[323320150,1713889842600,-653.71,0.00012106,2]
[323320151,1713889842609,-500.0,0.00012106,2]
[323320152,1713889842619,-701.17,0.00012106,2]
[323320153,1713889842629,-500.0,0.00012106,2]
[323320154,1713889842638,-500.0,0.00012106,2]
[323320155,1713889842649,-1536.15,0.00012106,2]
[323320156,1713889842659,-597.14,0.00012106,2]
[323320157,1713889842668,-500.0,0.00012106,2]
[323320158,1713889842679,-500.0,0.00012106,2]
[323320159,1713889842689,-500.0,0.00012106,2]
[323320160,1713889842699,-500.0,0.00012106,2]
[323320161,1713889842709,-500.0,0.00012106,2]
[323320162,1713889842719,-500.0,0.00012106,2]
[323320163,1713889842729,-500.0,0.00012106,2]
[323320164,1713889842739,-500.0,0.00012106,2]
[323320165,1713889842749,-500.0,0.00012106,2]
[323320166,1713889842759,-668.01,0.00012106,2]
[323320167,1713889842770,-500.0,0.00012106,2]
[323320168,1713889842782,-500.0,0.00012106,2]
[323320169,1713889842791,-1561.87,0.00012106,2]
[323320170,1713889842801,-762.5,0.00012106,2]
[323320171,1713889842811,-500.0,0.00012106,2]
[323320172,1713889842821,-1223.96,0.00012106,2]
[323320173,1713889842832,-558.03,0.00012106,2]
[323320174,1713889842842,-500.0,0.00012106,2]
[323320175,1713889842852,-500.0,0.00012106,2]
[323320176,1713889842862,-3808.76,0.00012106,2]
[323320177,1713889842872,-1013.06,0.00012106,2]
[323320178,1713889842882,-500.0,0.00012106,2]
[323320179,1713889842892,-500.0,0.00012106,2]
[323320180,1713889842902,-1272.68,0.00012106,2]
[323320181,1713889842912,-500.0,0.00012106,2]
[323320182,1713889842922,-1905.57,0.00012106,2]
[323320183,1713889842932,-500.0,0.00012106,2]
[323320184,1713889842942,-3032.18,0.00012106,2]
[323320185,1713889842952,-668.49,0.00012106,2]
[323320186,1713889842962,-533.69,0.00012106,2]
[323320187,1713889842972,-699.44,0.00012106,2]
[323320188,1713889842982,-500.0,0.00012106,2]
[323320189,1713889842992,-500.0,0.00012106,2]
[323320190,1713889843001,-500.0,0.00012106,2]
[323320191,1713889843011,-811.3,0.00012106,2]
[323320192,1713889843020,-295.70387,0.0001212,2]
[323320193,1713889843031,-160.43,0.00012153,2]
[323320194,1713889843041,-2321.74176097,0.00012179,2]
[323320195,1713889843050,-34033.92970739,0.00012179,2]
[323320196,1713889843073,-297.17240877,0.00012179,2]
[323320197,1713889843088,-621.8,0.00012179,2]
[323320198,1713889843107,-4556.14821939,0.00012179,2]
[323320199,1713889843119,-3930.55985511,0.00012179,2]
[323320200,1713889843138,-3216.5930413,0.00012179,2]
[323320201,1713889843148,-273.12750202,0.00012179,2]
[323320202,1713889843158,-1219.0410115,0.00012179,2]
[323320203,1713889843168,-174.21845116,0.00012179,2]
[323320204,1713889843178,-10372.04019043,0.00012179,2]
[323320205,1713889843189,-203.66115181,0.00012179,2]
[323320206,1713889843200,-376.48214074,0.00012179,2]
[323320207,1713889843211,-309.40866786,0.00012179,2]
[323320208,1713889843221,-202.11645638,0.00012179,2]
[323320210,1713889843232,-335.52269983,0.00012179,2]
[323320212,1713889843242,-500.0,0.0001218,2]
[323320214,1713889843252,-500.0,0.0001218,2]